fUST/lending_fUST_20241127
["ID","MTS","AMOUNT","RATE_DAILY","PERIOD"]
[343504083,1732693746935,164.0,0.00022,2]
[343504092,1732693831941,-162.110311,0.00024323,2]
[343504093,1732693831951,-450.172453,0.00024475,2]
[343504094,1732693831961,-72.43409658,0.00024504,2]
[343504095,1732693832005,-848.93662592,0.00024504,2]
[343504097,1732693832015,-5990.308748,0.00024531,2]
[343504099,1732693832024,-1091.2639957,0.0002457,2]
[343504100,1732693832033,-952.741868,0.00024658,4]
[343504102,1732693832043,-450.172453,0.0002516,2]
[343504104,1732693832052,-302.72757545,0.00025182,2]
[343504106,1732693832063,-302.69733596,0.00025182,2]
[343504108,1732693832073,-302.72757545,0.00025434,2]
[343504110,1732693832082,-302.69733596,0.00025434,2]
[343504113,1732693832092,-2277.26767013,0.00025586,2]
[343504116,1732693832101,-300.0,0.00025589,2]
[343504119,1732693832111,-300.0,0.00025589,2]
[343504121,1732693832120,-349.3,0.0002559,3]
[343504122,1732693832130,-174.65,0.0002559,3]
[343504125,1732693832140,-523.95,0.0002559,3]
[343504126,1732693832149,-761.0,0.0002559,3]
[343504129,1732693832159,-1922.88,0.0002559,10]
[343504132,1732693832169,-180.07144227,0.00025599,2]
[343504133,1732693832178,-521.99401131,0.00025599,2]
[343504134,1732693832187,-197.03273566,0.00025599,2]
[343504135,1732693832197,-500.0,0.00025599,2]
[343504137,1732693832207,-200.0,0.00025599,2]
[343504139,1732693832217,-500.0,0.00025599,2]
[343504140,1732693832226,-187.66565863,0.00025599,2]
[343504141,1732693832235,-500.0,0.00025599,2]
[343504142,1732693832244,-500.0,0.00025599,2]
[343504143,1732693832253,-500.0,0.00025599,2]
[343504144,1732693832263,-500.0,0.00025599,2]
[343504145,1732693832272,-450.44171484,0.00025599,2]
[343504146,1732693832282,-350.2604517,0.00025599,2]
[343504147,1732693832291,-500.0,0.00025599,2]
[343504148,1732693832300,-175.73732311,0.00025599,2]
[343504149,1732693832310,-223.79007864,0.00025599,2]
[343504150,1732693832323,-9405.83961125,0.000256,2]
[343504151,1732693832335,-14047.15518624,0.000256,2]
[343504157,1732693838034,-544.19082374,0.000256,2]
[343504158,1732693838047,-767.44126324,0.000256,2]
[343504159,1732693838057,-559864.91791745,0.000256,2]
[343504160,1732693838095,-899.1100003,0.000256,2]
[343504195,1732693843079,-1602.4,0.0002559,10]
[343504196,1732693843089,-382.62412152,0.00025599,2]
[343504199,1732693843098,-2554.8506043,0.000256,2]
[343504212,1732693846013,-1369.85462987,0.000256,2]
[343504215,1732693846367,203.0,0.00022,2]
[343504216,1732693923087,160.322967,0.00013973,2]
[343504217,1732693947137,173.0,0.00022,2]
[343504230,1732694146311,160.0,0.00022,2]
[343504262,1732694446681,177.0,0.00022,2]
[343504263,1732694636599,160.265164,0.00013973,2]
[343504265,1732694702352,520.0,0.00022,10]
[343504266,1732694705128,-177.0,0.00022192,2]
[343504267,1732694705157,-161.0,0.00023014,2]
[343504268,1732694705183,-177.0,0.00023014,2]
[343504269,1732694705212,-165.503797,0.00023713,2]
[343504270,1732694705243,-350.750132,0.00023843,2]
[343504271,1732694705273,-780.850623,0.00024005,2]
[343504272,1732694705305,-2377.6519968,0.00024164,2]
[343504273,1732694705332,-183.0,0.00024164,2]
[343504274,1732694705360,-150.0,0.00024165,2]
[343504275,1732694705387,-379.0968005,0.00024206,2]
[343504276,1732694705415,-1089.70977834,0.00024216,2]
[343504277,1732694705443,-1908.52046105,0.00024223,2]
[343504278,1732694705472,-300.0,0.00024225,2]
[343504279,1732694705502,-300.0,0.00024225,2]
[343504280,1732694705534,-7123.1689028,0.00024226,2]
[343504281,1732694705569,-150.0,0.0002452,2]
[343504282,1732694705600,-350.750132,0.00024528,2]
[343504283,1732694705629,-150.0,0.00024901,2]
[343504284,1732694705657,-157.43,0.00025063,2]
[343504285,1732694705686,-242.705,0.00025073,2]
[343504286,1732694705816,-531.0,0.00025073,2]
[343504287,1732694705845,-2377.0,0.00025073,2]
[343504288,1732694705874,-1123.923,0.00025073,2]
[343504289,1732694705918,-176.37689464,0.00025102,2]
[343504290,1732694705950,-350.750132,0.00025213,2]
[343504291,1732694705978,-5690.50106575,0.00025251,2]
[343504292,1732694706006,-3409.35086955,0.0002535,2]
[343504293,1732694706033,-1869.3343202,0.000254,2]
[343504294,1732694706065,-1869.33432018,0.00025425,2]
[343504295,1732694706096,-1869.33432018,0.0002545,2]
[343504296,1732694706124,-500.0,0.00025473,2]
[343504297,1732694706153,-500.0,0.00025473,2]
[343504298,1732694706181,-539.48558552,0.00025473,2]
[343504299,1732694706212,-466.89794477,0.00025473,2]
[343504300,1732694706240,-500.0,0.00025473,2]
[343504301,1732694706268,-500.0,0.00025473,2]
[343504302,1732694706299,-1869.33432018,0.00025475,2]
[343504303,1732694706327,-2525.75,0.00025479,2]
[343504304,1732694706355,-282.23,0.0002549,3]
[343504305,1732694706383,-235.19,0.0002549,3]
[343504306,1732694706417,-705.62,0.0002549,3]
[343504307,1732694706452,-157.43,0.0002549,2]
[343504308,1732694706480,-157.43,0.0002549,2]
[343504309,1732694706508,-443.492,0.00025493,10]
[343504310,1732694706535,-1241.77425255,0.00025499,2]
[343504311,1732694706567,-497.13892486,0.00025499,2]
[343504312,1732694706596,-500.0,0.00025499,2]
[343504313,1732694706625,-500.0,0.00025499,2]
[343504314,1732694706655,-500.0,0.00025499,2]
[343504315,1732694706682,-500.0,0.00025499,2]
[343504316,1732694706714,-500.0,0.00025499,2]
[343504317,1732694706741,-500.0,0.00025499,2]
[343504318,1732694706769,-500.0,0.00025499,2]
[343504319,1732694706800,-500.0,0.00025499,2]
[343504320,1732694706827,-500.0,0.00025499,2]
[343504321,1732694706855,-187.0,0.00025499,2]
[343504322,1732694706882,-500.0,0.00025499,2]
[343504323,1732694706909,-500.0,0.00025499,2]
[343504324,1732694706937,-221.52127346,0.00025499,2]
[343504325,1732694706965,-500.0,0.00025499,2]
[343504326,1732694706994,-500.0,0.00025499,2]
[343504327,1732694707021,-500.0,0.00025499,2]
[343504328,1732694707050,-500.0,0.00025499,2]
[343504329,1732694707079,-184.49479457,0.00025499,2]
[343504330,1732694707109,-500.0,0.00025499,2]
[343504331,1732694707136,-294.83920914,0.00025499,2]
[343504332,1732694707167,-500.0,0.00025499,2]
[343504333,1732694707197,-500.0,0.00025499,2]
[343504334,1732694707225,-500.0,0.00025499,2]
[343504335,1732694707254,-500.0,0.00025499,2]
[343504336,1732694707281,-300.0,0.00025499,2]
[343504337,1732694707313,-500.0,0.00025499,2]
[343504338,1732694707341,-9993.63898819,0.000255,2]
[343504339,1732694707393,-177.0,0.000255,2]
[343504340,1732694707405,-161.0,0.000255,2]
[343504341,1732694707418,-177.0,0.000255,2]
[343504342,1732694707429,-165.503797,0.000255,2]
[343504343,1732694707441,-350.750132,0.000255,2]
[343504344,1732694707453,-780.850623,0.000255,2]
[343504345,1732694707469,-262.34749646,0.00024225,10]
[343504346,1732694707478,-2115.30450034,0.000255,2]
[343504347,1732694707490,-183.0,0.000255,2]
[343504348,1732694707501,-150.0,0.000255,2]
[343504349,1732694707516,-379.0968005,0.000255,2]
[343504350,1732694707528,-1089.70977834,0.000255,2]
[343504351,1732694707555,-1908.52046105,0.000255,2]
[343504352,1732694707566,-300.0,0.000255,2]
[343504353,1732694707578,-300.0,0.000255,2]
[343504354,1732694707589,-7123.1689028,0.000255,2]
[343504355,1732694707600,-150.0,0.000255,2]
[343504356,1732694707612,-350.750132,0.000255,2]
[343504357,1732694707624,-150.0,0.000255,2]
[343504358,1732694707639,-157.43,0.000255,2]
[343504359,1732694707651,-242.705,0.000255,2]
[343504360,1732694707666,-531.0,0.000255,2]
[343504361,1732694707678,-2377.0,0.000255,2]
[343504362,1732694707690,-1123.923,0.000255,2]
[343504363,1732694707705,-176.37689464,0.000255,2]
[343504364,1732694707717,-350.750132,0.000255,2]
[343504365,1732694707729,-5690.50106575,0.000255,2]
[343504366,1732694707742,-3409.35086955,0.000255,2]
[343504367,1732694707753,-1869.3343202,0.000255,2]
[343504368,1732694707765,-1869.33432018,0.000255,2]
[343504369,1732694707841,-1869.33432018,0.000255,2]
[343504370,1732694707868,-500.0,0.000255,2]
[343504371,1732694707879,-500.0,0.000255,2]
[343504372,1732694707892,-539.48558552,0.000255,2]
[343504373,1732694707903,-466.89794477,0.000255,2]
[343504374,1732694707915,-500.0,0.000255,2]
[343504375,1732694707926,-500.0,0.000255,2]
[343504376,1732694707938,-1869.33432018,0.000255,2]
[343504377,1732694707950,-2525.75,0.000255,2]
[343504378,1732694707961,-282.23,0.000255,2]
[343504379,1732694707973,-235.19,0.000255,2]
[343504380,1732694707985,-705.62,0.000255,2]
[343504381,1732694707997,-157.43,0.000255,2]
[343504382,1732694708009,-157.43,0.000255,2]
[343504383,1732694708020,-443.492,0.000255,2]
[343504384,1732694708031,-1241.77425255,0.000255,2]
[343504385,1732694708056,-497.13892486,0.0002549,10]
[343504386,1732694708069,-500.0,0.0002549,10]
[343504387,1732694708083,-338.19107514,0.0002549,10]
[343504388,1732694708093,-161.80892486,0.000255,2]
[343504389,1732694708106,-500.0,0.000255,2]
[343504390,1732694708118,-500.0,0.000255,2]
[343504391,1732694708130,-500.0,0.000255,2]
[343504392,1732694708143,-500.0,0.000255,2]
[343504393,1732694708156,-500.0,0.000255,2]
[343504394,1732694708168,-500.0,0.000255,2]
[343504395,1732694708184,-500.0,0.000255,2]
[343504396,1732694708195,-187.0,0.000255,2]
[343504397,1732694708207,-500.0,0.000255,2]
[343504398,1732694708219,-500.0,0.000255,2]
[343504399,1732694708231,-221.52127346,0.000255,2]
[343504400,1732694708242,-500.0,0.000255,2]
[343504401,1732694708254,-500.0,0.000255,2]
[343504402,1732694708266,-500.0,0.000255,2]
[343504403,1732694708277,-500.0,0.000255,2]
[343504404,1732694708290,-184.49479457,0.000255,2]
[343504405,1732694708304,-500.0,0.000255,2]
[343504406,1732694708316,-294.83920914,0.000255,2]
[343504407,1732694708328,-500.0,0.000255,2]
[343504408,1732694708340,-500.0,0.000255,2]
[343504409,1732694708352,-500.0,0.000255,2]
[343504410,1732694708364,-500.0,0.000255,2]
[343504411,1732694708376,-300.0,0.000255,2]
[343504412,1732694708392,-500.0,0.000255,2]
[343504413,1732694708404,-9993.63898819,0.000255,2]
[343504414,1732694708416,-26631.38032154,0.000255,2]
[343504415,1732694754689,-969.7112832,0.00024797,2]
[343504416,1732694754718,-1112.78,0.0002549,10]
[343504417,1732694754748,-500.0,0.00025499,2]
[343504418,1732694754777,-500.0,0.00025499,2]
[343504419,1732694754810,-93.0174336,0.00025499,2]
[343504420,1732694754824,-406.9825664,0.00025499,2]
[343504421,1732694754833,-500.0,0.00025499,2]
[343504422,1732694754844,-62.7287168,0.00025499,2]
[343504423,1732694754855,-437.2712832,0.00025499,2]
[343504424,1732694754864,-500.0,0.00025499,2]
[343504425,1732694754873,-175.5087168,0.00025499,2]
[343504426,1732694754884,-268.001456,0.00025499,2]
[343504427,1732694754893,-227.14089932,0.00025499,2]
[343504428,1732694754902,-4.85764468,0.00025499,2]
[343504429,1732694754913,-496.19315949,0.00025499,2]
[343504430,1732694754922,-3.80684051,0.00025499,2]
[343504431,1732694754934,-496.19315949,0.00025499,2]
[343504432,1732694754943,-3.80684051,0.000255,2]
[343504462,1732695032597,-390.425312,0.0002449,2]
[343504463,1732695032606,-2983.18201083,0.000254,2]
[343504464,1732695032617,-351.06803584,0.000254,2]
[343504465,1732695032626,-300.0,0.00025472,2]
[343504466,1732695032636,-300.0,0.00025472,2]
[343504467,1732695032645,-360.22395492,0.00025473,2]
[343504468,1732695032655,-513.68399063,0.00025473,2]
[343504469,1732695032664,-500.0,0.00025473,2]
[343504470,1732695032673,-366.70582776,0.00025473,2]
[343504471,1732695032682,-501.33824216,0.00025473,2]
[343504472,1732695032691,-502.47426701,0.00025473,2]
[343504473,1732695032701,-501.56317806,0.00025473,2]
[343504474,1732695032710,-500.0,0.00025473,2]
[343504475,1732695032719,-517.41,0.0002549,3]
[343504476,1732695032728,-517.43,0.0002549,3]
[343504477,1732695032737,-447.2,0.0002549,10]
[343504478,1732695032746,-852.78,0.0002549,10]
[343504479,1732695032755,-215.94557475,0.00025499,2]
[343504480,1732695032764,-827.8495017,0.000255,2]
[343504481,1732695032774,-81068.61073103,0.000255,2]
[343504482,1732695032783,-214353.10459582,0.000255,2]
[343504483,1732695032794,-1869.33432018,0.000255,2]
[343504484,1732695032804,-500.0,0.00025573,2]
[343504485,1732695032813,-607.79149785,0.00025573,2]
[343504486,1732695032822,-500.0,0.00025573,2]
[343504487,1732695032833,-163.03401722,0.00025573,2]
[343504488,1732695032842,-500.0,0.00025573,2]
[343504489,1732695032851,-264.50630035,0.00025573,2]
[343504490,1732695032860,-503.51892786,0.00025573,2]
[343504491,1732695032871,-500.0,0.00025573,2]
[343504492,1732695032880,-500.0,0.00025573,2]
[343504493,1732695032889,-500.0,0.00025573,2]
[343504494,1732695032898,-500.0,0.00025573,2]
[343504495,1732695032907,-259.66420119,0.00025599,2]
[343504496,1732695032916,-158055.30675164,0.000256,2]
[343504497,1732695032928,-2615.08329608,0.000256,2]
[343504515,1732695038201,-173.57378832,0.00025473,2]
[343504516,1732695038211,-1156.49021168,0.000256,2]
[343504517,1732695038223,-582812.20210335,0.000256,2]
[343504520,1732695038254,-4427.13892486,0.000256,2]
[343504543,1732695040575,-9899.52688585,0.000256,2]
[343504544,1732695040648,-327.14,0.000256,2]
[343504562,1732695043191,-710.65,0.0002559,10]
[343504563,1732695043201,-931989.90293155,0.000256,2]
[343504564,1732695043972,-0.44969678,0.000256,2]
[343504583,1732695046162,-503.06140235,0.00025573,2]
[343504584,1732695046173,-18200.02849765,0.000256,2]
[343504637,1732695459100,160.265164,0.00013973,2]
[343504638,1732695671208,-362.03247165,0.00023877,2]
[343504639,1732695671230,-162.110311,0.00024119,2]
[343504640,1732695671253,-2610.28425952,0.000253,2]
[343504641,1732695671275,-300.0,0.00025372,2]
[343504642,1732695671297,-300.0,0.00025372,2]
[343504643,1732695671318,-500.0,0.00025373,2]
[343504644,1732695671339,-366.36739818,0.00025373,2]
[343504645,1732695671360,-500.0,0.00025373,2]
[343504646,1732695671379,-151.1733344,0.00025373,2]
[343504647,1732695671400,-500.0,0.00025373,2]
[343504648,1732695671420,-364.60621399,0.00025373,2]
[343504649,1732695671441,-303.05,0.0002539,10]
[343504650,1732695671463,-500.0,0.00025399,2]
[343504651,1732695671485,-500.0,0.00025399,2]
[343504652,1732695671506,-199.42657879,0.00025399,2]
[343504653,1732695671532,-636.32869272,0.00025399,2]
[343504654,1732695671556,-213.0,0.00025399,2]
[343504655,1732695671577,-3000.0,0.00025399,2]
[343504656,1732695671599,-551.8996678,0.000254,2]
[343504657,1732695671620,-41214.64155776,0.000254,2]
[343504658,1732695671641,-222000.0,0.000254,2]
[343504659,1732695671663,-150.0,0.00025433,2]
[343504660,1732695671690,-531.0,0.00025433,2]
[343504661,1732695671712,-1104.0,0.00025433,2]
[343504662,1732695671733,-2377.0,0.00025433,2]
[343504663,1732695671755,-354.794,0.00025445,10]
[343504664,1732695671868,-258.81078382,0.000255,2]
[343504665,1732695671892,-1657.93014116,0.000255,2]
[343504666,1732695671914,-500.0,0.00025573,2]
[343504667,1732695671942,-402.07662015,0.00025573,2]
[343504668,1732695671964,-500.0,0.00025573,2]
[343504669,1732695671988,-500.0,0.00025573,2]
[343504670,1732695672010,-500.0,0.00025573,2]
[343504671,1732695672034,-181.76494084,0.00025599,2]
[343504672,1732695672058,-462918.60275115,0.000256,2]
[343504673,1732695672080,-151.0,0.000256,16]
[343504674,1732695672102,-151.0,0.000256,19]
[343504675,1732695672123,-151.0,0.000256,11]
[343504676,1732695672143,-151.0,0.000256,19]
[343504677,1732695672165,-171.119916,0.000256,20]
[343504678,1732695672192,-5000.0,0.000256,2]
[343504679,1732695672216,-5000.0,0.000256,2]
[343504680,1732695672238,-1109.319315,0.000256,2]
[343504681,1732695672259,-158.58214888,0.00025921,2]
[343504682,1732695672281,-1000.0,0.00025921,2]
[343504683,1732695672301,-150.056,0.00025964,2]
[343504684,1732695672322,-150.0,0.00025964,2]
[343504685,1732695672342,-258.81078374,0.00026103,2]
[343504686,1732695672364,-2610.28425947,0.00026104,2]
[343504687,1732695672385,-1000.0,0.00026121,2]
[343504688,1732695672406,-1000.0,0.00026121,2]
[343504689,1732695672426,-501.92941739,0.00026121,2]
[343504690,1732695672453,-261.00254458,0.00026121,2]
[343504691,1732695672473,-660.0,0.00026384,2]
[343504692,1732695672495,-1657.93014115,0.000265,2]
[343504693,1732695672515,-1159.837501,0.000265,2]
[343504694,1732695672537,-258.81078374,0.00026707,2]
[343504695,1732695672558,-2610.28425947,0.00026909,2]
[343504696,1732695672579,-1000.0,0.00027,2]
[343504697,1732695672601,-259.87778752,0.00027122,2]
[343504698,1732695672624,-1500.0,0.00027122,2]
[343504699,1732695672646,-657.46849881,0.00027297,2]
[343504700,1732695672666,-258.81078374,0.0002731,2]
[343504701,1732695672690,-291.0022374,0.00027373,2]
[343504702,1732695672710,-500.0,0.00027397,3]
[343504703,1732695672731,-201.54651528,0.00027397,3]
[343504704,1732695672751,-500.0,0.00027397,3]
[343504705,1732695672772,-504.37936183,0.00027397,3]
[343504706,1732695672792,-500.0,0.00027397,3]
[343504707,1732695672814,-500.0,0.00027397,3]
[343504708,1732695672835,-500.0,0.00027397,3]
[343504709,1732695672857,-500.0,0.00027397,3]
[343504710,1732695672877,-500.0,0.00027397,3]
[343504711,1732695672898,-521.58889022,0.00027397,3]
[343504712,1732695672918,-505.00704253,0.00027397,3]
[343504713,1732695672941,-506.33230676,0.00027397,3]
[343504714,1732695672961,-511.71565601,0.00027397,3]
[343504715,1732695672985,-500.0,0.00027397,3]
[343504716,1732695673007,-500.0,0.00027397,3]
[343504717,1732695673030,-387.97899375,0.00027397,3]
[343504718,1732695673052,-630.58,0.00027397,3]
[343504719,1732695673076,-412.99837677,0.00027397,3]
[343504720,1732695673098,-500.39424163,0.00027397,3]
[343504721,1732695673119,-500.0,0.00027397,3]
[343504722,1732695673140,-506.9930822,0.00027397,3]
[343504723,1732695673162,-500.0,0.00027397,3]
[343504724,1732695673186,-502.14803284,0.00027397,3]
[343504725,1732695673206,-500.0,0.00027397,3]
[343504726,1732695673227,-500.0,0.00027397,3]
[343504727,1732695673247,-500.0,0.00027397,3]
[343504728,1732695673268,-500.0,0.00027397,3]
[343504729,1732695673289,-307.46907335,0.00027397,3]
[343504730,1732695673309,-500.0,0.00027397,3]
[343504731,1732695673329,-500.0,0.00027397,3]
[343504732,1732695673348,-500.0,0.00027397,3]
[343504733,1732695673369,-502.74280589,0.00027397,3]
[343504734,1732695673390,-502.62000886,0.00027397,3]
[343504735,1732695673411,-500.0,0.00027397,2]
[343504736,1732695673434,-501.23468891,0.00027397,3]
[343504737,1732695673454,-500.0,0.00027397,3]
[343504738,1732695673474,-500.0,0.00027397,3]
[343504739,1732695673496,-500.0,0.00027397,3]
[343504740,1732695673519,-202.06995159,0.00027397,3]
[343504741,1732695673540,-500.0,0.00027397,3]
[343504742,1732695673562,-500.0,0.00027397,3]
[343504743,1732695673583,-500.0,0.00027397,3]
[343504744,1732695673604,-500.0,0.00027397,3]
[343504745,1732695673627,-500.0,0.00027397,3]
[343504746,1732695673650,-500.0,0.00027397,3]
[343504747,1732695673750,-500.0,0.00027397,3]
[343504748,1732695673773,-500.0,0.00027397,3]
[343504749,1732695673795,-500.0,0.00027397,3]
[343504750,1732695673818,-500.0,0.00027397,3]
[343504751,1732695673839,-500.0,0.00027397,3]
[343504752,1732695673861,-500.0,0.00027397,3]
[343504753,1732695673882,-500.0,0.00027397,3]
[343504754,1732695673904,-500.0,0.00027397,3]
[343504755,1732695673926,-593.13,0.00027397,3]
[343504756,1732695673951,-504.06908755,0.00027397,3]
[343504757,1732695673972,-500.0,0.00027397,3]
[343504758,1732695673998,-504.29578501,0.00027397,3]
[343504759,1732695674019,-544.86529519,0.00027397,3]
[343504760,1732695674040,-500.0,0.00027397,3]
[343504761,1732695674062,-500.0,0.00027397,3]
[343504762,1732695674083,-500.0,0.00027397,3]
[343504763,1732695674104,-500.0,0.00027397,3]
[343504764,1732695674125,-500.0,0.00027397,3]
[343504765,1732695674146,-500.0,0.00027397,3]
[343504766,1732695674168,-500.0,0.00027397,3]
[343504767,1732695674193,-500.0,0.00027397,3]
[343504768,1732695674214,-500.0,0.00027397,3]
[343504769,1732695674235,-500.0,0.00027397,3]
[343504770,1732695674257,-500.0,0.00027397,3]
[343504771,1732695674281,-500.0,0.00027397,3]
[343504772,1732695674304,-500.0,0.00027397,3]
[343504773,1732695674325,-500.0,0.00027397,3]
[343504774,1732695674347,-500.0,0.00027397,3]
[343504775,1732695674369,-500.0,0.00027397,3]
[343504776,1732695674391,-500.0,0.00027397,3]
[343504777,1732695674412,-500.0,0.00027397,3]
[343504778,1732695674434,-500.0,0.00027397,3]
[343504779,1732695674455,-500.0,0.00027397,3]
[343504780,1732695674478,-500.0,0.00027397,3]
[343504781,1732695674500,-473.71,0.00027397,3]
[343504782,1732695674522,-500.0,0.00027397,3]
[343504783,1732695674544,-500.0,0.00027397,3]
[343504784,1732695674565,-500.0,0.00027397,3]
[343504785,1732695674593,-576.28954183,0.00027397,3]
[343504786,1732695674622,-501.34208437,0.00027397,3]
[343504787,1732695674643,-501.268027,0.00027397,3]
[343504788,1732695674666,-504.03148828,0.00027397,3]
[343504789,1732695674691,-500.0,0.00027397,3]
[343504790,1732695674712,-307.0590448,0.00027397,3]
[343504791,1732695674734,-500.0,0.00027397,3]
[343504792,1732695674758,-500.0,0.00027397,3]
[343504793,1732695674780,-500.0,0.00027397,3]
[343504794,1732695674802,-500.0,0.00027397,3]
[343504795,1732695674823,-319.89200571,0.00027397,3]
[343504796,1732695674845,-500.0,0.00027397,3]
[343504797,1732695674868,-500.0,0.00027397,3]
[343504798,1732695674889,-500.0,0.00027397,3]
[343504799,1732695674910,-500.0,0.00027397,3]
[343504800,1732695674935,-500.0,0.00027397,3]
[343504801,1732695674956,-500.0,0.00027397,3]
[343504802,1732695674978,-500.0,0.00027397,3]
[343504803,1732695675004,-500.0,0.00027397,3]
[343504804,1732695675026,-500.0,0.00027397,3]
[343504805,1732695675049,-500.0,0.00027397,3]
[343504806,1732695675072,-500.0,0.00027397,3]
[343504807,1732695675092,-613.81004285,0.00027397,3]
[343504808,1732695675114,-414.06626848,0.00027397,3]
[343504809,1732695675135,-500.0,0.00027397,3]
[343504810,1732695675160,-500.0,0.00027397,3]
[343504811,1732695675185,-501.75345133,0.00027397,3]
[343504812,1732695675206,-500.0,0.00027397,3]
[343504813,1732695675231,-500.0,0.00027397,3]
[343504814,1732695675252,-500.0,0.00027397,3]
[343504815,1732695675272,-500.0,0.00027397,3]
[343504816,1732695675293,-500.0,0.00027397,3]
[343504817,1732695675315,-266.10251201,0.00027397,3]
[343504818,1732695675337,-503.34644562,0.00027397,3]
[343504819,1732695675359,-501.00650369,0.00027397,3]
[343504820,1732695675380,-500.0,0.00027397,3]
[343504821,1732695675402,-500.0,0.00027397,3]
[343504822,1732695675423,-190.46250366,0.00027397,3]
[343504823,1732695675448,-500.0,0.00027397,3]
[343504824,1732695675469,-504.15352462,0.00027397,3]
[343504825,1732695675491,-500.0,0.00027397,3]
[343504826,1732695675608,-154.93,0.00027397,3]
[343504827,1732695675631,-500.0,0.00027397,3]
[343504828,1732695675653,-500.0,0.00027397,3]
[343504829,1732695675676,-645.57,0.00027397,3]
[343504830,1732695675705,-638.51,0.00027397,3]
[343504831,1732695675727,-500.0,0.00027397,3]
[343504832,1732695675749,-503.29886717,0.00027397,3]
[343504833,1732695675771,-500.0,0.00027397,3]
[343504834,1732695675793,-502.31614398,0.00027397,3]
[343504835,1732695675814,-504.42547694,0.00027397,3]
[343504836,1732695675836,-500.0,0.00027397,3]
[343504837,1732695675857,-506.22812455,0.00027397,3]
[343504838,1732695675879,-500.0,0.00027397,3]
[343504839,1732695675901,-500.0,0.00027397,3]
[343504840,1732695675922,-501.83517268,0.00027397,3]
[343504841,1732695675946,-500.0,0.00027397,3]
[343504842,1732695675966,-441.4785091,0.00027397,3]
[343504843,1732695675991,-505.47408052,0.00027397,3]
[343504844,1732695676012,-500.0,0.00027397,3]
[343504845,1732695676034,-171.48,0.00027397,3]
[343504846,1732695676055,-500.0,0.00027397,3]
[343504847,1732695676077,-500.0,0.00027397,3]
[343504848,1732695676097,-578.30104402,0.00027397,3]
[343504849,1732695676118,-484.04984649,0.00027397,3]
[343504850,1732695676138,-500.0,0.00027397,3]
[343504851,1732695676159,-503.18215782,0.00027397,3]
[343504852,1732695676180,-500.0,0.00027397,3]
[343504853,1732695676213,-500.0,0.00027397,3]
[343504854,1732695676237,-500.0,0.00027397,3]
[343504855,1732695676258,-197.68,0.00027397,3]
[343504856,1732695676280,-380.07,0.00027397,3]
[343504857,1732695676301,-500.0,0.00027397,3]
[343504858,1732695676321,-175.17,0.00027397,3]
[343504859,1732695676343,-500.21676718,0.00027397,3]
[343504860,1732695676364,-644.3,0.00027397,3]
[343504861,1732695676385,-505.0777363,0.00027397,3]
[343504862,1732695676406,-352.97099532,0.00027397,3]
[343504863,1732695676427,-500.0,0.00027397,3]
[343504864,1732695676447,-485.70718759,0.00027397,3]
[343504865,1732695676468,-529.59245974,0.00027397,3]
[343504866,1732695676492,-500.0,0.00027397,3]
[343504867,1732695676513,-507.71915002,0.00027397,3]
[343504868,1732695676534,-501.69515749,0.00027397,3]